[Event "*** Titled Tuesday Blitz"]
[Site "Chess.com"]
[Date "2020.10.27"]
[Round "9"]
[White "Yoshikrov"]
[Black "krasavetc"]
[Result "1/2-1/2"]
[WhiteElo "2140"]
[BlackElo "2283"]
[TimeControl "180+1"]
[EndTime "11:46:31 PDT"]
[Termination "Game drawn by stalemate"]

1. e4 {[%clk 0:03:00.9]} 1... e6 {[%clk 0:02:59.1]} 2. d4 {[%clk 0:03:00.7]}
2... d5 {[%clk 0:03:00]} 3. Nd2 {[%clk 0:03:01]} 3... dxe4 {[%clk 0:02:54.8]} 4.
Nxe4 {[%clk 0:03:00.8]} 4... Nf6 {[%clk 0:02:55.7]} 5. Nxf6+ {[%clk 0:03:01.1]}
5... Qxf6 {[%clk 0:02:54.1]} 6. Nf3 {[%clk 0:03:00.8]} 6... h6 {[%clk
0:02:52.2]} 7. Bd3 {[%clk 0:03:00.9]} 7... c5 {[%clk 0:02:50.4]} 8. Be3 {[%clk
0:02:43.9]} 8... Nc6 {[%clk 0:02:40.9]} 9. c3 {[%clk 0:02:27.3]} 9... cxd4
{[%clk 0:02:35.7]} 10. Nxd4 {[%clk 0:02:27.2]} 10... Ne5 {[%clk 0:02:31.8]} 11.
Bb5+ {[%clk 0:02:20.7]} 11... Bd7 {[%clk 0:02:27.4]} 12. Qa4 {[%clk 0:02:08.4]}
12... Bc5 {[%clk 0:02:15.9]} 13. Bxd7+ {[%clk 0:02:06.3]} 13... Nxd7 {[%clk
0:02:14.4]} 14. O-O {[%clk 0:01:59.1]} 14... Bxd4 {[%clk 0:02:03.9]} 15. Bxd4
{[%clk 0:01:56.9]} 15... e5 {[%clk 0:02:03.2]} 16. Rfe1 {[%clk 0:01:50.9]} 16...
O-O {[%clk 0:01:55.4]} 17. Qxd7 {[%clk 0:01:47.2]} 17... exd4 {[%clk 0:01:46.3]}
18. Qxd4 {[%clk 0:01:43]} 18... Qc6 {[%clk 0:01:40.9]} 19. Qb4 {[%clk
0:01:31.4]} 19... Rad8 {[%clk 0:01:34.8]} 20. Rad1 {[%clk 0:01:28.2]} 20... Qe6
{[%clk 0:01:28.4]} 21. Qxf8+ {[%clk 0:01:13.5]} 21... Rxf8 {[%clk 0:01:16.6]}
22. Rxe6 {[%clk 0:01:13.5]} 22... fxe6 {[%clk 0:01:16.4]} 23. Rd7 {[%clk
0:01:13.5]} 23... Rb8 {[%clk 0:01:15.2]} 24. f4 {[%clk 0:01:07]} 24... a5 {[%clk
0:01:10.5]} 25. Kf2 {[%clk 0:01:03.9]} 25... b5 {[%clk 0:01:09.2]} 26. Ke3
{[%clk 0:01:01.8]} 26... Kh7 {[%clk 0:01:05.1]} 27. g4 {[%clk 0:00:57.7]} 27...
Kg6 {[%clk 0:01:03.5]} 28. Ke4 {[%clk 0:00:55.3]} 28... b4 {[%clk 0:01:00.1]}
29. c4 {[%clk 0:00:55.1]} 29... b3 {[%clk 0:00:59]} 30. a3 {[%clk 0:00:54.8]}
30... Kf6 {[%clk 0:00:54.4]} 31. h4 {[%clk 0:00:53.6]} 31... Rc8 {[%clk
0:00:50.9]} 32. g5+ {[%clk 0:00:49.9]} 32... hxg5 {[%clk 0:00:49.3]} 33. hxg5+
{[%clk 0:00:50.8]} 33... Kg6 {[%clk 0:00:49.8]} 34. Kd4 {[%clk 0:00:45.9]} 34...
Kf5 {[%clk 0:00:49.6]} 35. Rf7+ {[%clk 0:00:45.9]} 35... Kg6 {[%clk 0:00:47.1]}
36. Ra7 {[%clk 0:00:42.2]} 36... Kf5 {[%clk 0:00:46.4]} 37. Rxg7 {[%clk
0:00:41.2]} 37... Kxf4 {[%clk 0:00:46.9]} 38. c5 {[%clk 0:00:41.2]} 38... e5+
{[%clk 0:00:39]} 39. Kd5 {[%clk 0:00:39.6]} 39... Rd8+ {[%clk 0:00:38]} 40. Ke6
{[%clk 0:00:37.3]} 40... e4 {[%clk 0:00:37.1]} 41. Rh7 {[%clk 0:00:23.1]} 41...
Rd2 {[%clk 0:00:32.6]} 42. g6 {[%clk 0:00:22.5]} 42... Rxb2 {[%clk 0:00:28.2]}
43. g7 {[%clk 0:00:22.3]} 43... Rg2 {[%clk 0:00:28.3]} 44. c6 {[%clk 0:00:21.8]}
44... b2 {[%clk 0:00:25.5]} 45. g8=Q {[%clk 0:00:15.9]} 45... Rxg8 {[%clk
0:00:19.1]} 46. Rb7 {[%clk 0:00:16]} 46... Rc8 {[%clk 0:00:18.2]} 47. Kd7 {[%clk
0:00:16]} 47... Rg8 {[%clk 0:00:15.9]} 48. c7 {[%clk 0:00:15.8]} 48... e3 {[%clk
0:00:16.5]} 49. Rxb2 {[%clk 0:00:16]} 49... Kf3 {[%clk 0:00:15.2]} 50. c8=Q
{[%clk 0:00:15.3]} 50... Rxc8 {[%clk 0:00:15]} 51. Kxc8 {[%clk 0:00:16]} 51...
e2 {[%clk 0:00:15.9]} 52. Rxe2 {[%clk 0:00:16.2]} 52... Kxe2 {[%clk 0:00:16.2]}
53. Kb7 {[%clk 0:00:16.9]} 53... Kd3 {[%clk 0:00:15.8]} 54. Kb6 {[%clk
0:00:17.4]} 54... a4 {[%clk 0:00:15.1]} 55. Kb5 {[%clk 0:00:17.6]} 55... Kc3
{[%clk 0:00:16]} 56. Kxa4 {[%clk 0:00:17.7]} 56... Kc4 {[%clk 0:00:16.9]} 57.
Ka5 {[%clk 0:00:18.2]} 57... Kc5 {[%clk 0:00:17.2]} 58. Ka6 {[%clk 0:00:18.7]}
58... Kc6 {[%clk 0:00:17.5]} 59. a4 {[%clk 0:00:18.7]} 59... Kc5 {[%clk
0:00:17.4]} 60. a5 {[%clk 0:00:19.6]} 60... Kc6 {[%clk 0:00:17.1]} 61. Ka7
{[%clk 0:00:20]} 61... Kc7 {[%clk 0:00:14.4]} 62. Ka6 {[%clk 0:00:20.2]} 62...
Kb8 {[%clk 0:00:12.9]} 63. Kb6 {[%clk 0:00:20.4]} 63... Ka8 {[%clk 0:00:13.8]}
64. a6 {[%clk 0:00:21.3]} 64... Kb8 {[%clk 0:00:14.6]} 65. a7+ {[%clk
0:00:21.4]} 65... Ka8 {[%clk 0:00:15.5]} 66. Ka6 {[%clk 0:00:22.3]} 1/2-1/2

[Event "*** Titled Tuesday Blitz"]
[Site "Chess.com"]
[Date "2020.10.27"]
[Round "9"]
[White "Leonid_Starozhilov"]
[Black "RobPeresian"]
[Result "0-1"]
[WhiteElo "2633"]
[BlackElo "2465"]
[TimeControl "180+1"]
[EndTime "11:46:33 PDT"]
[Termination "RobPeresian won by resignation"]

1. e4 {[%clk 0:03:00.9]} 1... e5 {[%clk 0:02:59.9]} 2. Nf3 {[%clk 0:03:00.1]}
2... Nc6 {[%clk 0:03:00]} 3. Bc4 {[%clk 0:02:58.9]} 3... Bc5 {[%clk 0:02:59.3]}
4. d3 {[%clk 0:02:59.2]} 4... Nf6 {[%clk 0:02:57]} 5. c3 {[%clk 0:02:57.9]} 5...
d6 {[%clk 0:02:56.9]} 6. Nbd2 {[%clk 0:02:56.9]} 6... a6 {[%clk 0:02:56.8]} 7.
Bb3 {[%clk 0:02:55.4]} 7... Ba7 {[%clk 0:02:56.2]} 8. Nc4 {[%clk 0:02:53.4]}
8... h6 {[%clk 0:02:49.6]} 9. Be3 {[%clk 0:02:47.8]} 9... Bxe3 {[%clk
0:02:48.7]} 10. Nxe3 {[%clk 0:02:48.7]} 10... Be6 {[%clk 0:02:42.9]} 11. O-O
{[%clk 0:02:46.9]} 11... O-O {[%clk 0:02:42.5]} 12. Re1 {[%clk 0:02:45.7]} 12...
Re8 {[%clk 0:02:41.4]} 13. Bd5 {[%clk 0:02:31]} 13... Bxd5 {[%clk 0:02:29.2]}
14. exd5 {[%clk 0:02:30.3]} 14... Ne7 {[%clk 0:02:29.1]} 15. c4 {[%clk
0:02:28.2]} 15... Ng6 {[%clk 0:02:22.9]} 16. Nd2 {[%clk 0:02:14.9]} 16... Nf4
{[%clk 0:02:18.9]} 17. Ne4 {[%clk 0:02:12.1]} 17... Nxe4 {[%clk 0:01:58.4]} 18.
dxe4 {[%clk 0:02:13]} 18... Qf6 {[%clk 0:01:58]} 19. g3 {[%clk 0:01:56.3]} 19...
Nh3+ {[%clk 0:01:26.1]} 20. Kg2 {[%clk 0:01:56.3]} 20... Ng5 {[%clk 0:01:26]}
21. Qg4 {[%clk 0:01:30.8]} 21... g6 {[%clk 0:01:19.7]} 22. h4 {[%clk 0:01:30.7]}
22... Nh7 {[%clk 0:01:15.6]} 23. Rac1 {[%clk 0:01:15.5]} 23... h5 {[%clk
0:01:11.8]} 24. Qe2 {[%clk 0:01:12.6]} 24... b6 {[%clk 0:01:09.2]} 25. b4 {[%clk
0:01:12.3]} 25... a5 {[%clk 0:01:08.6]} 26. a3 {[%clk 0:01:12.8]} 26... axb4
{[%clk 0:01:08.3]} 27. axb4 {[%clk 0:01:13.7]} 27... Ra4 {[%clk 0:00:46.9]} 28.
Rb1 {[%clk 0:01:06.4]} 28... Rea8 {[%clk 0:00:45.2]} 29. Rec1 {[%clk 0:01:06.6]}
29... Qe7 {[%clk 0:00:28]} 30. Rc2 {[%clk 0:01:03.7]} 30... Nf6 {[%clk
0:00:27.6]} 31. Qf3 {[%clk 0:00:53]} 31... Kg7 {[%clk 0:00:23.1]} 32. Rbb2
{[%clk 0:00:44.4]} 32... Ra3 {[%clk 0:00:22.1]} 33. Rd2 {[%clk 0:00:40.3]} 33...
Ng4 {[%clk 0:00:21.6]} 34. Re2 {[%clk 0:00:36]} 34... Nxe3+ {[%clk 0:00:20.8]}
35. Rxe3 {[%clk 0:00:36.1]} 35... Ra1 {[%clk 0:00:20.9]} 36. Rd3 {[%clk
0:00:29.7]} 36... Rc1 {[%clk 0:00:20.1]} 37. Rdd2 {[%clk 0:00:18.7]} 37... Raa1
{[%clk 0:00:19.4]} 38. Rdc2 {[%clk 0:00:16.9]} 38... Rg1+ {[%clk 0:00:18.4]} 39.
Kh2 {[%clk 0:00:17.4]} 39... Qd7 {[%clk 0:00:18.6]} 40. c5 {[%clk 0:00:15.7]}
40... bxc5 {[%clk 0:00:18.2]} 41. bxc5 {[%clk 0:00:16.2]} 41... Qg4 {[%clk
0:00:14.7]} 42. Qxg4 {[%clk 0:00:13.6]} 42... hxg4 {[%clk 0:00:14.7]} 43. f4
{[%clk 0:00:13.8]} 43... gxf3 {[%clk 0:00:13.5]} 44. Kh3 {[%clk 0:00:13.6]}
44... f5 {[%clk 0:00:13]} 45. cxd6 {[%clk 0:00:12.9]} 45... Rh1+ {[%clk
0:00:11.8]} 46. Rh2 {[%clk 0:00:12.8]} 46... cxd6 {[%clk 0:00:11.3]} 47. h5
{[%clk 0:00:11.6]} 47... fxe4 {[%clk 0:00:10.6]} 48. Rxh1 {[%clk 0:00:09.8]}
48... Rxh1+ {[%clk 0:00:09.8]} 49. Kg4 {[%clk 0:00:10.7]} 49... gxh5+ {[%clk
0:00:08.5]} 50. Kg5 {[%clk 0:00:10.8]} 50... e3 {[%clk 0:00:09.4]} 51. Rb7+
{[%clk 0:00:10.8]} 51... Kf8 {[%clk 0:00:09.5]} 52. Kf6 {[%clk 0:00:11.3]} 52...
Ke8 {[%clk 0:00:09.8]} 53. Ke6 {[%clk 0:00:11.9]} 53... Kd8 {[%clk 0:00:10.2]}
54. Kxd6 {[%clk 0:00:11.6]} 54... Kc8 {[%clk 0:00:10.7]} 55. Rc7+ {[%clk
0:00:12.2]} 55... Kb8 {[%clk 0:00:10.3]} 56. Rf7 {[%clk 0:00:12]} 56... e2
{[%clk 0:00:10.4]} 57. Rxf3 {[%clk 0:00:11.6]} 57... e1=Q {[%clk 0:00:10.4]} 58.
Rc3 {[%clk 0:00:12.3]} 58... Qxc3 {[%clk 0:00:09.6]} 59. Ke6 {[%clk 0:00:12]}
59... e4 {[%clk 0:00:09.8]} 60. d6 {[%clk 0:00:12.9]} 60... Qc6 {[%clk
0:00:09.6]} 61. Ke7 {[%clk 0:00:13.2]} 61... Rd1 {[%clk 0:00:09.7]} 62. d7
{[%clk 0:00:14.1]} 62... Rxd7+ {[%clk 0:00:09.1]} 0-1

[Event "*** Titled Tuesday Blitz"]
[Site "Chess.com"]
[Date "2020.10.27"]
[Round "9"]
[White "suyu28"]
[Black "shnitez"]
[Result "1-0"]
[WhiteElo "2604"]
[BlackElo "2434"]
[TimeControl "180+1"]
[EndTime "11:46:33 PDT"]
[Termination "suyu28 won by resignation"]

1. f4 {[%clk 0:02:56.3]} 1... Nf6 {[%clk 0:02:59]} 2. Nf3 {[%clk 0:02:56.3]}
2... g6 {[%clk 0:02:59.3]} 3. g3 {[%clk 0:02:56.8]} 3... Bg7 {[%clk 0:02:59.6]}
4. Bg2 {[%clk 0:02:57.5]} 4... O-O {[%clk 0:03:00.5]} 5. O-O {[%clk 0:02:57.9]}
5... d5 {[%clk 0:02:56.8]} 6. d3 {[%clk 0:02:58.3]} 6... b6 {[%clk 0:02:56.9]}
7. c3 {[%clk 0:02:56.6]} 7... c5 {[%clk 0:02:53.5]} 8. e4 {[%clk 0:02:48.8]}
8... dxe4 {[%clk 0:02:36.6]} 9. dxe4 {[%clk 0:02:47.7]} 9... Bb7 {[%clk
0:02:34.9]} 10. e5 {[%clk 0:02:45.5]} 10... Nd5 {[%clk 0:02:24.8]} 11. Qe2
{[%clk 0:02:42.9]} 11... Ba6 {[%clk 0:02:22.1]} 12. c4 {[%clk 0:02:42.8]} 12...
Nb4 {[%clk 0:02:17]} 13. Nc3 {[%clk 0:02:24.9]} 13... Bb7 {[%clk 0:01:57.6]} 14.
Rd1 {[%clk 0:02:21.9]} 14... Qc8 {[%clk 0:01:52.2]} 15. Nd5 {[%clk 0:02:19.3]}
15... Re8 {[%clk 0:01:47.2]} 16. Be3 {[%clk 0:02:15.5]} 16... Nd7 {[%clk
0:01:24.5]} 17. Ng5 {[%clk 0:02:10]} 17... e6 {[%clk 0:01:16.6]} 18. Nxb4 {[%clk
0:02:07.2]} 18... cxb4 {[%clk 0:01:16.7]} 19. Ne4 {[%clk 0:02:08.1]} 19... Bxe4
{[%clk 0:01:12.4]} 20. Bxe4 {[%clk 0:02:07.6]} 20... Rb8 {[%clk 0:01:12.7]} 21.
h4 {[%clk 0:01:58.8]} 21... Bf8 {[%clk 0:01:07.4]} 22. h5 {[%clk 0:01:55.6]}
22... Bc5 {[%clk 0:01:03.7]} 23. b3 {[%clk 0:01:55.2]} 23... Rd8 {[%clk
0:01:00.4]} 24. Kg2 {[%clk 0:01:53.4]} 24... Bxe3 {[%clk 0:00:57.1]} 25. Qxe3
{[%clk 0:01:53.2]} 25... Nc5 {[%clk 0:00:56.6]} 26. Bf3 {[%clk 0:01:52.8]} 26...
Qc7 {[%clk 0:00:54.6]} 27. h6 {[%clk 0:01:21.3]} 27... Qe7 {[%clk 0:00:30.6]}
28. g4 {[%clk 0:01:11.6]} 28... Rxd1 {[%clk 0:00:26]} 29. Rxd1 {[%clk
0:01:10.6]} 29... Rd8 {[%clk 0:00:26.5]} 30. Rd4 {[%clk 0:01:07.6]} 30... Kf8
{[%clk 0:00:20.3]} 31. g5 {[%clk 0:01:06]} 31... Rxd4 {[%clk 0:00:19.1]} 32.
Qxd4 {[%clk 0:01:05.9]} 32... Qd7 {[%clk 0:00:19.5]} 33. Qd6+ {[%clk 0:01:00.6]}
33... Qxd6 {[%clk 0:00:17.1]} 34. exd6 {[%clk 0:01:01.5]} 34... Nd3 {[%clk
0:00:14.3]} 35. Kg3 {[%clk 0:00:51.8]} 35... Nc1 {[%clk 0:00:14.5]} 36. f5
{[%clk 0:00:48.2]} 36... exf5 {[%clk 0:00:09.5]} 37. Kf4 {[%clk 0:00:48.4]}
37... Nd3+ {[%clk 0:00:08.3]} 38. Ke3 {[%clk 0:00:48.2]} 38... Ne5 {[%clk
0:00:06]} 39. Bd5 {[%clk 0:00:45.6]} 39... Ke8 {[%clk 0:00:05.9]} 40. Kd4 {[%clk
0:00:40.2]} 40... Nd7 {[%clk 0:00:03.6]} 41. Bc6 {[%clk 0:00:39.1]} 41... Kd8
{[%clk 0:00:04]} 42. Kd5 {[%clk 0:00:38.8]} 42... Nc5 {[%clk 0:00:03.6]} 43. Ke5
{[%clk 0:00:35.5]} 43... Nd7+ {[%clk 0:00:03.8]} 44. Kd5 {[%clk 0:00:25]} 44...
a5 {[%clk 0:00:03.9]} 45. Bb5 {[%clk 0:00:22.2]} 45... f4 {[%clk 0:00:03.2]} 46.
Ke4 {[%clk 0:00:22.1]} 46... f3 {[%clk 0:00:02.9]} 47. Kxf3 {[%clk 0:00:21.9]}
47... f6 {[%clk 0:00:02.8]} 48. Kf4 {[%clk 0:00:16.8]} 48... fxg5+ {[%clk
0:00:02.5]} 49. Kxg5 {[%clk 0:00:16.4]} 49... Ne5 {[%clk 0:00:02.6]} 50. Kf6
{[%clk 0:00:14.9]} 50... Ng4+ {[%clk 0:00:01.8]} 51. Kg7 {[%clk 0:00:14.9]}
51... Nxh6 {[%clk 0:00:02.4]} 52. Kxh6 {[%clk 0:00:15.2]} 52... Kc8 {[%clk
0:00:02.6]} 53. Bc6 {[%clk 0:00:15.2]} 53... Kd8 {[%clk 0:00:02.6]} 54. Kxh7
{[%clk 0:00:15.2]} 54... g5 {[%clk 0:00:03.1]} 55. Kg6 {[%clk 0:00:15.5]} 55...
g4 {[%clk 0:00:04]} 56. Kf5 {[%clk 0:00:15.9]} 56... g3 {[%clk 0:00:04.9]} 57.
Ke5 {[%clk 0:00:16.3]} 57... Kc8 {[%clk 0:00:03.5]} 58. Ke6 {[%clk 0:00:16.8]}
58... Kd8 {[%clk 0:00:03.8]} 59. Bg2 {[%clk 0:00:17]} 59... Ke8 {[%clk
0:00:02.1]} 60. d7+ {[%clk 0:00:16.7]} 60... Kd8 {[%clk 0:00:02.7]} 61. Bf3
{[%clk 0:00:17.2]} 61... b5 {[%clk 0:00:01.9]} 62. cxb5 {[%clk 0:00:17.4]} 1-0

[Event "*** Titled Tuesday Blitz"]
[Site "Chess.com"]
[Date "2020.10.27"]
[Round "9"]
[White "MF1966Idrisov"]
[Black "Brave_spirit12"]
[Result "0-1"]
[WhiteElo "2339"]
[BlackElo "2502"]
[TimeControl "180+1"]
[EndTime "11:46:37 PDT"]
[Termination "Brave_spirit12 won on time"]

1. Nf3 {[%clk 0:03:00.9]} 1... d5 {[%clk 0:02:59.8]} 2. b3 {[%clk 0:03:01]} 2...
Nf6 {[%clk 0:02:59.7]} 3. Bb2 {[%clk 0:03:01.2]} 3... e6 {[%clk 0:02:59.9]} 4.
e3 {[%clk 0:03:01.3]} 4... Be7 {[%clk 0:03:00.2]} 5. d4 {[%clk 0:03:01.5]} 5...
O-O {[%clk 0:03:00.4]} 6. Bd3 {[%clk 0:03:01.6]} 6... c5 {[%clk 0:02:59.2]} 7.
Nbd2 {[%clk 0:03:01.5]} 7... Nc6 {[%clk 0:02:59.5]} 8. O-O {[%clk 0:03:01.6]}
8... a6 {[%clk 0:02:58.8]} 9. Ne5 {[%clk 0:03:01.4]} 9... Nxe5 {[%clk
0:02:55.8]} 10. dxe5 {[%clk 0:03:01.4]} 10... Nd7 {[%clk 0:02:56.4]} 11. f4
{[%clk 0:03:01.5]} 11... f6 {[%clk 0:02:56.3]} 12. exf6 {[%clk 0:02:52.4]} 12...
Bxf6 {[%clk 0:02:57.2]} 13. Bxf6 {[%clk 0:02:49.9]} 13... Nxf6 {[%clk
0:02:58.1]} 14. Qf3 {[%clk 0:02:40.9]} 14... b5 {[%clk 0:02:57.2]} 15. Rad1
{[%clk 0:02:08.8]} 15... Bb7 {[%clk 0:02:55.6]} 16. Qh3 {[%clk 0:02:04.1]} 16...
Qe7 {[%clk 0:02:47.8]} 17. Nf3 {[%clk 0:02:02.8]} 17... c4 {[%clk 0:02:29.7]}
18. Be2 {[%clk 0:01:55.9]} 18... Ne4 {[%clk 0:02:25.6]} 19. Ne5 {[%clk
0:01:49.9]} 19... Rad8 {[%clk 0:02:18.3]} 20. Bf3 {[%clk 0:01:43]} 20... Nc3
{[%clk 0:02:07.6]} 21. Ra1 {[%clk 0:01:30.9]} 21... Qc5 {[%clk 0:02:03.4]} 22.
Bg4 {[%clk 0:01:29.4]} 22... Bc8 {[%clk 0:01:18.5]} 23. Bxe6+ {[%clk 0:01:28.3]}
23... Bxe6 {[%clk 0:01:19.4]} 24. Qxe6+ {[%clk 0:01:28]} 24... Kh8 {[%clk
0:01:19.8]} 25. Nf7+ {[%clk 0:01:25.2]} 25... Rxf7 {[%clk 0:01:20.2]} 26. Qxf7
{[%clk 0:01:25.4]} 26... Qxe3+ {[%clk 0:01:20.6]} 27. Kh1 {[%clk 0:01:24]} 27...
Ne4 {[%clk 0:01:21.2]} 28. Rf3 {[%clk 0:00:53]} 28... Qd4 {[%clk 0:01:09.7]} 29.
Raf1 {[%clk 0:00:50]} 29... a5 {[%clk 0:00:48.1]} 30. Qc7 {[%clk 0:00:47]} 30...
Re8 {[%clk 0:00:46.1]} 31. Qxa5 {[%clk 0:00:45.3]} 31... Nd2 {[%clk 0:00:41.6]}
32. Qxb5 {[%clk 0:00:40.4]} 32... Qe4 {[%clk 0:00:38.7]} 33. h3 {[%clk
0:00:34.9]} 33... h6 {[%clk 0:00:18.5]} 34. f5 {[%clk 0:00:31]} 34... Nxf3
{[%clk 0:00:12.3]} 35. Rxf3 {[%clk 0:00:27.4]} 35... Qe1+ {[%clk 0:00:12.9]} 36.
Kh2 {[%clk 0:00:27.5]} 36... Qe5+ {[%clk 0:00:13.8]} 37. Rg3 {[%clk 0:00:25.5]}
37... h5 {[%clk 0:00:13.3]} 38. h4 {[%clk 0:00:22.2]} 38... Rf8 {[%clk
0:00:11.4]} 39. Qd7 {[%clk 0:00:17.9]} 39... Rxf5 {[%clk 0:00:08.5]} 40. Qd8+
{[%clk 0:00:17.2]} 40... Kh7 {[%clk 0:00:08.4]} 41. Kh3 {[%clk 0:00:17.2]} 41...
Rf6 {[%clk 0:00:07.3]} 42. Qd7 {[%clk 0:00:15.2]} 42... Rg6 {[%clk 0:00:04.3]}
43. Rxg6 {[%clk 0:00:13.9]} 43... Kxg6 {[%clk 0:00:05.2]} 44. bxc4 {[%clk
0:00:12]} 44... Qe3+ {[%clk 0:00:04.3]} 45. g3 {[%clk 0:00:11]} 45... dxc4
{[%clk 0:00:03.8]} 46. Qc6+ {[%clk 0:00:09.4]} 46... Kh7 {[%clk 0:00:04.5]} 47.
Qxc4 {[%clk 0:00:09.4]} 47... Qg1 {[%clk 0:00:04.6]} 48. Qe4+ {[%clk 0:00:08.2]}
48... Kh6 {[%clk 0:00:05]} 49. Qf4+ {[%clk 0:00:06.4]} 49... Kh7 {[%clk
0:00:04.9]} 50. Qe4+ {[%clk 0:00:06.1]} 50... g6 {[%clk 0:00:05.3]} 51. a4
{[%clk 0:00:05.5]} 51... Qf1+ {[%clk 0:00:05.8]} 52. Kh2 {[%clk 0:00:05.5]}
52... Qf2+ {[%clk 0:00:05.8]} 53. Kh1 {[%clk 0:00:04]} 53... Qf1+ {[%clk
0:00:05.5]} 54. Kh2 {[%clk 0:00:02.8]} 54... Qa1 {[%clk 0:00:06.4]} 55. g4
{[%clk 0:00:01.1]} 55... Qc1 {[%clk 0:00:06.6]} 0-1

[Event "*** Titled Tuesday Blitz"]
[Site "Chess.com"]
[Date "2020.10.27"]
[Round "9"]
[White "Zkid"]
[Black "TomiLen"]
[Result "1-0"]
[WhiteElo "2815"]
[BlackElo "2641"]
[TimeControl "180+1"]
[EndTime "11:46:38 PDT"]
[Termination "Zkid won by resignation"]

1. e4 {[%clk 0:03:00.9]} 1... e6 {[%clk 0:02:59.8]} 2. d4 {[%clk 0:03:00.4]}
2... d5 {[%clk 0:03:00.4]} 3. Nc3 {[%clk 0:03:00.9]} 3... Nf6 {[%clk 0:03:00.2]}
4. Bg5 {[%clk 0:03:00.4]} 4... dxe4 {[%clk 0:02:58.5]} 5. Nxe4 {[%clk
0:03:00.9]} 5... Nbd7 {[%clk 0:02:58.8]} 6. Nf3 {[%clk 0:03:00.5]} 6... Be7
{[%clk 0:02:58.6]} 7. Nxf6+ {[%clk 0:03:00.1]} 7... Bxf6 {[%clk 0:02:58.7]} 8.
Be3 {[%clk 0:02:57]} 8... c5 {[%clk 0:02:57.5]} 9. Qd2 {[%clk 0:02:44.3]} 9...
cxd4 {[%clk 0:02:54.1]} 10. Bxd4 {[%clk 0:02:44.6]} 10... e5 {[%clk 0:02:50.8]}
11. Bc3 {[%clk 0:02:41.9]} 11... O-O {[%clk 0:02:39.2]} 12. O-O-O {[%clk
0:02:40.1]} 12... e4 {[%clk 0:02:36.2]} 13. Bxf6 {[%clk 0:02:36.1]} 13... Qxf6
{[%clk 0:02:37.1]} 14. Nd4 {[%clk 0:02:35.7]} 14... Nb6 {[%clk 0:02:28.1]} 15.
Qe3 {[%clk 0:02:27.4]} 15... Bf5 {[%clk 0:02:16.9]} 16. Qf4 {[%clk 0:02:22.6]}
16... Bg6 {[%clk 0:02:15.6]} 17. Qxf6 {[%clk 0:02:22.2]} 17... gxf6 {[%clk
0:02:16.5]} 18. h4 {[%clk 0:02:21.6]} 18... h5 {[%clk 0:02:12.6]} 19. Ne2 {[%clk
0:02:11.8]} 19... Rfd8 {[%clk 0:02:08.7]} 20. Rxd8+ {[%clk 0:01:50.3]} 20...
Rxd8 {[%clk 0:02:08]} 21. Rh3 {[%clk 0:01:51]} 21... Nd5 {[%clk 0:02:01]} 22.
Nc3 {[%clk 0:01:47]} 22... Nf4 {[%clk 0:01:51.9]} 23. Re3 {[%clk 0:01:44.8]}
23... f5 {[%clk 0:01:51.7]} 24. g3 {[%clk 0:01:44.4]} 24... Ne6 {[%clk
0:01:44.9]} 25. Bc4 {[%clk 0:01:42.2]} 25... f4 {[%clk 0:01:40.2]} 26. Re1
{[%clk 0:01:24.2]} 26... e3 {[%clk 0:01:19.6]} 27. fxe3 {[%clk 0:01:21.9]} 27...
fxg3 {[%clk 0:01:10.8]} 28. Rg1 {[%clk 0:01:20.9]} 28... Ng7 {[%clk 0:01:06.7]}
29. e4 {[%clk 0:01:17.2]} 29... Rd4 {[%clk 0:00:45.3]} 30. Bd5 {[%clk
0:01:12.9]} 30... Rb4 {[%clk 0:00:34.7]} 31. Rxg3 {[%clk 0:01:10.2]} 31... Kh7
{[%clk 0:00:35]} 32. Ne2 {[%clk 0:00:55.8]} 32... Ne8 {[%clk 0:00:19.5]} 33. Rb3
{[%clk 0:00:42.5]} 33... Rxb3 {[%clk 0:00:18.9]} 34. axb3 {[%clk 0:00:42.9]}
34... b6 {[%clk 0:00:16.9]} 35. Kd2 {[%clk 0:00:39.5]} 35... Nf6 {[%clk
0:00:14.8]} 36. Ng3 {[%clk 0:00:32.7]} 36... Kg7 {[%clk 0:00:13.5]} 37. c3
{[%clk 0:00:29.9]} 37... Ng4 {[%clk 0:00:12.8]} 38. Kd3 {[%clk 0:00:21.6]} 38...
Kf6 {[%clk 0:00:13.3]} 39. Kd4 {[%clk 0:00:20.6]} 39... Ne5 {[%clk 0:00:13.6]}
40. Ke3 {[%clk 0:00:20.6]} 40... a5 {[%clk 0:00:11.5]} 41. Ne2 {[%clk
0:00:19.3]} 41... Ng4+ {[%clk 0:00:09.9]} 42. Kf4 {[%clk 0:00:19]} 42... Ne5
{[%clk 0:00:10.6]} 43. Bc4 {[%clk 0:00:19.4]} 43... Bh7 {[%clk 0:00:08]} 44. Bb5
{[%clk 0:00:17.8]} 44... Ng6+ {[%clk 0:00:08]} 45. Kg3 {[%clk 0:00:17.3]} 45...
Ne5 {[%clk 0:00:08.2]} 46. Nf4 {[%clk 0:00:16.9]} 46... Bxe4 {[%clk 0:00:07.1]}
47. Nxh5+ {[%clk 0:00:16.8]} 47... Ke7 {[%clk 0:00:07.1]} 48. Nf4 {[%clk
0:00:16.6]} 48... Bc2 {[%clk 0:00:07.3]} 49. Bc4 {[%clk 0:00:13.8]} 49... a4
{[%clk 0:00:04]} 50. Nd5+ {[%clk 0:00:12.4]} 50... Kd6 {[%clk 0:00:04.4]} 51.
Nxb6 {[%clk 0:00:12.7]} 51... Bxb3 {[%clk 0:00:04.4]} 52. Bxb3 {[%clk
0:00:12.6]} 52... axb3 {[%clk 0:00:04.7]} 53. h5 {[%clk 0:00:13.2]} 53... Nd3
{[%clk 0:00:03.4]} 54. h6 {[%clk 0:00:12.3]} 54... Ne5 {[%clk 0:00:03.7]} 55. h7
{[%clk 0:00:12.6]} 55... Ng6 {[%clk 0:00:04]} 56. Kg4 {[%clk 0:00:11.3]} 56...
Kc5 {[%clk 0:00:03.9]} 57. Nd7+ {[%clk 0:00:11.4]} 57... Kc4 {[%clk 0:00:02.9]}
58. Kg5 {[%clk 0:00:10.9]} 58... Kd3 {[%clk 0:00:02.7]} 59. Ne5+ {[%clk
0:00:11]} 59... Nxe5 {[%clk 0:00:02.6]} 60. h8=Q {[%clk 0:00:11.1]} 60... Nf3+
{[%clk 0:00:02.2]} 61. Kf4 {[%clk 0:00:11.1]} 61... Nd2 {[%clk 0:00:02.6]} 62.
c4 {[%clk 0:00:10.1]} 1-0